{"text_format":"1","workbook":"xlsx","n_sheets":2,"sheets":["ＪＵ沖縄出品票","記入サンプル"],"not_rendered":{"charts":0,"images":4,"macros":1,"external_links":0,"defined_names":2,"comments":0,"pivot_tables":0},"unopened":[],"bounds":{"document_bytes":16777216,"sheet_cells":100000,"rows_first":2000,"rows_last":500,"rows_between":2000,"halvings":0,"cell_chars":16384,"cell_head_chars":4096},"cells_cut":0,"cells_raw":0,"read":"whole","date_system":"1900"}

{"sheet":"ＪＵ沖縄出品票","index":0,"n_rows":147,"n_cols":80,"rows_kept":147,"cut":false,"hidden":false,"merged":[[88,1,89,1],[88,2,89,5],[90,1,91,1],[90,2,91,10],[52,34,53,54],[1,9,5,17],[59,1,60,1],[59,2,60,6],[44,5,45,5],[57,12,58,17],[77,7,78,9],[84,22,85,47],[33,1,38,1],[33,2,34,3],[35,2,36,3],[49,2,50,6],[37,4,38,4],[31,24,34,30],[42,23,43,53],[40,23,41,53],[67,1,68,1],[70,1,71,1],[31,1,32,1],[57,1,58,1],[78,77,79,81],[72,1,73,1],[57,7,58,11],[17,1,18,1],[17,2,18,7],[37,2,38,3],[29,1,30,1],[49,1,50,1],[19,27,22,31],[53,2,54,6],[40,2,41,3],[51,2,52,6],[42,2,43,3],[47,2,48,6],[40,4,41,4],[42,4,43,4],[44,2,45,4],[27,25,30,27],[46,23,47,53],[52,22,53,27],[44,23,45,53],[50,28,51,33],[50,22,51,27],[44,6,45,6],[83,1,84,1],[77,1,78,1],[81,1,82,1],[79,1,80,1],[52,28,53,33],[44,7,45,16],[50,34,51,54],[62,1,65,1],[47,1,48,1],[51,1,52,1],[40,1,45,1],[85,1,86,1],[85,2,86,5],[85,6,86,6],[85,7,86,10],[72,2,73,9],[74,1,75,1],[74,2,75,9],[53,1,54,1],[55,1,56,1],[66,2,71,12],[62,2,63,3],[64,2,65,3],[92,49,100,55],[96,22,97,47],[94,22,95,47],[92,22,93,47],[98,36,100,46],[88,22,89,47],[98,22,100,32],[90,22,91,47],[55,2,56,6],[81,2,82,5],[77,2,78,6],[81,6,82,8],[79,2,80,9],[55,8,56,10],[66,13,70,17],[83,2,84,5],[83,6,84,8],[64,4,65,4],[57,2,58,6],[86,22,87,47],[72,30,74,51],[75,30,79,51],[62,4,63,4],[90,49,91,55],[38,56,39,58],[37,67,39,81],[35,62,36,64],[33,62,34,64],[38,60,39,62],[35,56,36,59],[35,73,36,76],[98,67,100,78],[92,57,94,65],[95,66,97,66],[95,57,97,65],[98,66,100,66],[98,57,100,65],[92,66,94,82],[95,67,97,78],[86,78,88,82],[86,57,88,65],[76,60,77,66],[89,66,91,82],[89,57,91,65],[76,76,77,81],[78,68,79,72],[86,66,88,77],[78,60,79,64],[31,2,32,6],[33,4,34,4],[20,13,20,16],[19,2,20,9],[14,40,17,53],[24,48,26,53],[35,67,36,70],[33,67,34,70],[23,25,26,29],[22,13,22,16],[21,7,22,7],[21,13,21,16],[35,49,36,52],[35,26,37,34],[35,4,36,4],[32,37,34,44],[31,11,32,12],[31,13,32,17],[15,2,16,9],[13,2,14,9],[16,70,18,73],[25,55,27,82],[27,30,30,31],[27,48,29,51],[29,7,30,7],[23,2,24,6],[27,2,28,6],[13,1,14,1],[19,1,20,1],[21,2,22,6],[15,1,16,1],[11,4,12,4],[17,13,18,16],[25,7,26,7],[21,1,22,1],[25,1,26,1],[27,1,28,1],[23,1,24,1],[29,2,30,6],[10,13,11,16],[11,2,12,3],[12,13,13,16],[19,13,19,16],[16,64,18,68],[20,48,22,53],[19,32,22,43],[23,32,26,36],[23,39,26,42],[9,1,12,1],[9,2,10,3],[9,4,10,4],[8,13,9,16],[25,2,26,6],[35,44,36,47],[14,13,15,16],[5,71,7,73],[9,71,11,73],[7,52,10,68],[13,64,15,68],[30,48,32,51],[27,36,30,37],[31,32,34,36],[28,55,30,82],[33,73,34,76],[33,79,34,81],[33,47,34,52],[27,34,30,35],[33,56,34,59],[27,43,30,44],[5,31,5,36],[7,40,10,51],[8,36,11,38],[6,31,11,35],[27,38,30,39],[13,70,15,73],[15,55,17,60],[22,55,24,82]]}
[]
[null,null,null,null,null,null,null,null,null,"⇓　黄色い部分の枠内のみ入力して下さい。　　　　　　　　右側のリストへ反映されます。⇒"]
[]
[]
[]
[null,null,null,null,null,null,null,null,null,null,null,null,null,null,null,null,null,null,null,null,null,null,null,null,null,null,null,null,null,null,null,null,null,null,null,null,null,null,null,null,null,null,null,null,null,null,null,null,null,null,null,null,null,null,null,null,null,null,null,null,null,null,null,null,null,null,null,null,null,null,null,{"$f":"IF(C18=\"\",\"\",IF(C18=\"4WD\",\"\",IF(C18=\"2WD\",\"〇\")))","v":""}]
[null,null,null,null,null,null,null,null,null,null,null,null,null,null,null,null,null,null,null,null,null,null,null,null,null,null,null,null,null,null,null,{"$f":"IF(C10=\"\",\"\",C10)","v":""}]
[null,null,null,null,null,null,null,null,null,null,null,null,null,null,null,null,null,null,null,null,null,null,null,null,null,null,null,null,null,null,null,null,null,null,null,null,null,null,null,null,{"$f":"IF(C14=\"\",\"\",C14)","v":""},null,null,null,null,null,null,null,null,null,null,null,{"$f":"IF(C16=\"\",\"\",C16)","v":""}]
[null,null,null,null,null,null,null,null,null,null,null,null,null,"セールスポイント",null,null,null,null,null,null,null,null,null,null,null,null,null,null,null,null,null,null,null,null,null,null,{"$f":"IF(C12=\"\",\"\",C12)","v":""}]
[null,"年式",null,null,null,null,null,null,null,null,null,null,null,null,null,null,null,null,null,null,null,null,null,null,null,null,null,null,null,null,null,null,null,null,null,null,null,null,null,null,null,null,null,null,null,null,null,null,null,null,null,null,null,null,null,null,null,null,null,null,null,null,null,null,null,null,null,null,null,null,null,{"$f":"IF(C18=\"\",\"\",IF(C18=\"2WD\",\"\",IF(C18=\"4WD\",\"〇\")))","v":""}]
[]
[]
[]
[null,"車名",null,null,null,null,null,null,null,null,null,null,null,null,null,null,null,null,null,null,null,null,null,null,null,null,null,null,null,null,null,null,null,null,null,null,null,null,null,null,null,null,null,null,null,null,null,null,null,null,null,null,null,null,null,null,null,null,null,null,null,null,null,null,{"$f":"IF(C24=\"\",\"\",C24)","v":""},null,null,null,null,null,{"$f":"IF(C26=\"\",\"\",C26)","v":""}]
[null,null,null,null,null,null,null,null,null,null,null,null,null,null,null,null,null,null,null,null,null,null,null,null,null,null,null,null,null,null,null,null,null,null,null,null,null,null,null,null,{"$f":"IF(C20=\"\",\"\",C20)","v":""}]
[null,"グレード",null,null,null,null,null,null,null,null,null,null,null,null,null,null,null,null,null,null,null,null,null,null,null,null,null,null,null,null,null,null,null,null,null,null,null,null,null,null,null,null,null,null,null,null,null,null,null,null,null,null,null,null,null,{"$f":"IF(C22=\"\",\"\",C22)","v":""}]
[null,null,null,null,null,null,null,null,null,null,null,null,null,null,null,null,null,null,null,null,null,null,null,null,null,null,null,null,null,null,null,null,null,null,null,null,null,null,null,null,null,null,null,null,null,null,null,null,null,null,null,null,null,null,null,null,null,null,null,null,null,null,null,null,{"$f":"IF(C28=\"\",\"\",C28)","v":""},null,null,null,null,null,{"$f":"IF(C30=\"\",\"\",C30)","v":""}]
[null,"駆動",null,null,null,null,null,null,null,null,null,null,null,"出品店申告欄"]
[]
[null,"型式",null,null,null,null,null,null,null,null,null,null,null,null,null,null,null,null,null,null,null,null,null,null,null,null,null,{"$f":"IF(C32=\"自家用\",\"〇\",\"\")","v":""},null,null,null,null,{"$f":"IF(C32=\"\",\"\",IF(C32=\"自家用\",\"\",C32))","v":""}]
[null,null,null,null,null,null,null,null,null,null,null,null,null,null,null,null,null,null,null,null,null,null,null,null,null,null,null,null,null,null,null,null,null,null,null,null,null,null,null,null,null,null,null,null,null,null,null,null,{"$f":"IF(C54=\"\",\"\",C54)","v":""}]
[null,"排気量",null,null,null,null,null,"ＣＣ"]
[null,null,null,null,null,null,null,null,null,null,null,null,null,null,null,null,null,null,null,null,null,null,null,null,null,null,null,null,null,null,null,null,null,null,null,null,null,null,null,null,null,null,null,null,null,null,null,null,null,null,null,null,null,null,null,{"$f":"IF(N11=\"\",\"\",N11)","v":""}]
[null,"ドア",null,null,null,null,null,null,null,null,null,null,null,null,null,null,null,null,null,null,null,null,null,null,null,{"$f":"IF(C34=\"\",\"\",C34)","v":""},null,null,null,null,null,null,{"$f":"IF(C36=\"\",\"\",C36)","v":""},null,null,null,null,null,null,{"$f":"IF(C38=\"\",\"\",C38)","v":""}]
[null,null,null,null,null,null,null,null,null,null,null,null,null,null,null,null,null,null,null,null,null,null,null,null,null,null,null,null,null,null,null,null,null,null,null,null,null,null,null,null,null,null,null,null,null,null,null,null,{"$f":"IF(C56=\"\",\"\",C56)","v":""}]
[null,"定員",null,null,null,null,null,"名",null,null,null,null,null,null,null,null,null,null,null,null,null,null,null,null,null,null,null,null,null,null,null,null,null,null,null,null,null,null,null,null,null,null,null,null,null,null,null,null,null,null,null,null,null,null,null,{"$f":"IF(N13=\"\",\"\",N13)","v":""}]
[]
[null,"形状",null,null,null,null,null,null,null,null,null,null,null,null,null,null,null,null,null,null,null,null,null,null,null,{"$f":"IF(C41=\"\",\"\",C41)","v":""},null,null,null,null,{"$f":"IF(C43=\"\",\"\",C43)","v":""},null,null,null,{"$f":"MID(C45,1,1)","v":""},null,{"$f":"MID(C45,2,1)","v":""},null,{"$f":"MID(C45,3,1)","v":""},null,null,null,null,{"$f":"IF(G45=\"\",\"\",G45)","v":""},null,null,null,null,{"$f":"IF(C58=\"ガソリン\",\"〇\",\"\")","v":""}]
[null,null,null,null,null,null,null,null,null,null,null,null,null,null,null,null,null,null,null,null,null,null,null,null,null,null,null,null,null,null,null,null,null,null,null,null,null,null,null,null,null,null,null,null,null,null,null,null,null,null,null,null,null,null,null,{"$f":"IF(N15=\"\",\"\",N15)","v":""}]
[null,"積載",null,null,null,null,null,"Ｋｇ"]
[null,null,null,null,null,null,null,null,null,null,null,null,null,null,null,null,null,null,null,null,null,null,null,null,null,null,null,null,null,null,null,null,null,null,null,null,null,null,null,null,null,null,null,null,null,null,null,null,{"$f":"IF(C58=\"軽油\",\"〇\",\"\")","v":""}]
[null,"車歴",null,null,null,null,null,null,null,null,null,null,null,"⇐ 水色枠はプルダウンリスト 【▽】 から選んで下さい",null,null,null,null,null,null,null,null,null,null,{"$f":"IF(C48=\"\",\"\",C48)","v":""},null,null,null,null,null,null,null,{"$f":"IF(M135=FALSE,\"\",IF(M135=TRUE,\"〇\"))","v":""}]
[null,null,null,null,null,null,null,null,null,null,null,null,null,null,null,null,null,null,null,null,null,null,null,null,null,null,null,null,null,null,null,null,null,null,null,null,null,{"$f":"IF(C52=\"\",\"\",C52)","v":""}]
[null,"車検",null,null,"年",null,null,null,null,null,null,null,null,null,null,null,null,null,null,null,null,null,null,null,null,null,null,null,null,null,null,null,null,null,null,null,null,null,null,null,null,null,null,null,null,null,null,{"$f":"IF(M115=1,\"\",IF(M115=2,\"\",IF(M115=3,\"\",IF(M115=4,H58))))","v":""},null,null,null,null,null,null,null,null,{"$f":"IF(M137=FALSE,\"\",IF(M137=TRUE,\"○\"))","v":""},null,null,null,null,null,{"$f":"IF(M138=FALSE,\"\",IF(M138=TRUE,\"○\"))","v":""},null,null,null,null,{"$f":"IF(M139=FALSE,\"\",IF(M139=TRUE,\"○\"))","v":""},null,null,null,null,null,{"$f":"IF(M140=FALSE,\"\",IF(M140=TRUE,\"○\"))","v":""},null,null,null,null,null,{"$f":"IF(M141=FALSE,\"\",IF(M141=TRUE,\"○\"))","v":""}]
[]
[null,null,null,null,"月",null,null,null,null,null,null,null,null,null,null,null,null,null,null,null,null,null,null,null,null,null,{"$f":"IF(C60=\"\",\"\",C60)","v":""},null,null,null,null,null,null,null,null,null,null,null,null,null,null,null,null,null,{"$f":"IF(C63=\"\",\"\",C63)","v":""},null,null,null,null,{"$f":"IF(C65=\"\",\"\",C65)","v":""},null,null,null,null,null,null,{"$f":"IF(M142=FALSE,\"\",IF(M142=TRUE,\"○\"))","v":""},null,null,null,null,null,{"$f":"IF(M143=FALSE,\"\",IF(M143=TRUE,\"○\"))","v":""},null,null,null,null,{"$f":"IF(M144=FALSE,\"\",IF(M144=TRUE,\"○\"))","v":""},null,null,null,null,null,{"$f":"IF(M145=FALSE,\"\",IF(M145=TRUE,\"○\"))","v":""}]
[]
[null,null,null,null,"日"]
[null,null,null,null,null,null,null,null,null,null,null,null,null,null,null,null,null,null,null,null,null,null,null,null,null,null,null,null,null,null,null,null,null,null,null,null,null,null,null,null,null,null,null,null,null,null,null,null,null,null,null,null,null,null,null,null,{"$f":"IF(M146=FALSE,\"\",IF(M146=TRUE,\"○\"))","v":""},null,null,null,{"$f":"IF(M147=FALSE,\"\",IF(M147=TRUE,\"○\"))","v":""}]
[]
[null,"走行",null,null,"万",null,null,null,null,null,null,null,null,null,null,null,null,null,null,null,null,null,null,{"$f":"IF(N20=\"\",\"\",N20)","v":""}]
[]
[null,null,null,null,"千",null,null,null,null,null,null,null,null,null,null,null,null,null,null,null,null,null,null,{"$f":"IF(N21=\"\",\"\",N21)","v":""}]
[]
[null,null,null,null,null,"Km",null,"⇐　※ 　走行不明車【＃】　　メーター改ざん車【＊】　　メーター交換車【＄】",null,null,null,null,null,null,null,null,null,null,null,null,null,null,null,{"$f":"IF(N22=\"\",\"\",N22)","v":""}]
[]
[null,null,null,null,null,null,null,null,null,null,null,null,null,null,null,null,null,null,null,null,null,null,null,{"$f":"IF(N23=\"\",\"\",N23)","v":""}]
[null,"色"]
[]
[null,"色替"]
[null,null,null,null,null,null,null,null,null,null,null,null,null,null,null,null,null,null,null,null,null,null,"検 査 員",null,null,null,null,null,"Ｆ Ｗ",null,null,null,null,null,"　キズ　・　飛石　・　ヒビ割　・　リペア跡　・　×要　"]
[null,"色コード"]
[null,null,null,null,null,null,null,null,null,null,null,null,null,null,null,null,null,null,null,null,null,null,"記 入 欄",null,null,null,null,null,"内 装",null,null,null,null,null," キズ　・　汚れ　・　コゲ　・　穴　・　スレ　・　キレ　・　破レ "]
[null,"シフト"]
[]
[null,"冷房"]
[]
[null,"燃料",null,null,null,null,null,null,null,null,null,null,"⇐ その他はコチラへ入力"]
[]
[null,"R券"]
[]
[]
[null,"名変期限",null,null,"月"]
[]
[null,null,null,null,"日"]
[]
[null,null,null,null,null,null,null,null,null,null,null,null,null,"⇐　※注意　 装備品は、純正品に限ります！"]
[null,"装備品"]
[]
[]
[null,"保証書"]
[]
[null,"車台No",null,null,null,null,null,null,null,null,null,null,null,null,null,null,null,null,null,null,null,null,null,null,null,null,null,null,null,null,{"$f":"IF(C73=\"\",\"\",C73)","v":""}]
[]
[null,"登録No"]
[null,null,null,null,null,null,null,null,null,null,null,null,null,null,null,null,null,null,null,null,null,null,null,null,null,null,null,null,null,null,{"$f":"IF(C75=\"\",\"\",C75)","v":""}]
[]
[null,"コーナー",null,null,null,null,null,"　コーナー"]
[]
[]
[]
[null,"スタート額"]
[]
[null,"希望金額"]
[null,null,null,null,null,null,null,null,null,null,null,null,null,null,null,null,null,null,null,null,null,null,"１．下見は必ず行い、クレームのないようお願い致します。"]
[null,"再出品歴"]
[null,null,null,null,null,null,null,null,null,null,null,null,null,null,null,null,null,null,null,null,null,null,"１．クレーム規約を遵守し、オークションに参加します。",null,null,null,null,null,null,null,null,null,null,null,null,null,null,null,null,null,null,null,null,null,null,null,null,null,null,null,null,null,null,null,null,null,null,"希 望 出 品",null,null,null,null,null,null,null,null,{"$f":"IF(C78=\"\",\"\",C78)","v":""},null,null,null,null,null,null,null,null,null,null,null,"コーナー"]
[]
[null,"会員番号",null,null,null,null,null,null,null,null,null,null,null,null,null,null,null,null,null,null,null,null,"１．Ｒ券預託済みの場合は金額を必ず記入して下さい。"]
[null,null,null,null,null,null,null,null,null,null,null,null,null,null,null,null,null,null,null,null,null,null,null,null,null,null,null,null,null,null,null,null,null,null,null,null,null,null,null,null,null,null,null,null,null,null,null,null,null,null,null,null,null,null,null,null,null,"会 員 番 号",null,null,null,null,null,null,null,null,{"$f":"IF(C89=\"\",\"\",C89)","v":""}]
[null,"会 員 名",null,null,null,null,null,null,null,null,null,null,null,null,null,null,null,null,null,null,null,null,"◎　自走可能車に限ります。",null,null,null,null,null,null,null,null,null,null,null,null,null,null,null,null,null,null,null,null,null,null,null,null,null,null,"検　査　員"]
[]
[null,null,null,null,null,null,null,null,null,null,null,null,1,null,null,null,null,null,null,null,null,null,"◎　スペアタイヤ、ジャッキ、レンチは必ず備え付けて下さい。",null,null,null,null,null,null,null,null,null,null,null,null,null,null,null,null,null,null,null,null,null,null,null,null,null,null,null,null,null,null,null,null,null,null,"出 品 店 名",null,null,null,null,null,null,null,null,{"$f":"IF(C91=\"\",\"\",C91)","v":""}]
[null,null,null,null,null,null,null,null,null,null,null,1]
[null,null,null,null,null,null,null,null,null,null,null,2,"2WD",null,null,null,null,null,null,null,null,null,"　 　欠品の場合は規約に基づき実費を差し引きます。"]
[null,null,null,null,null,null,null,null,null,null,null,3,"4WD",null,null,null,null,null,null,null,null,null,null,null,null,null,null,null,null,null,null,null,null,null,null,null,null,null,null,null,null,null,null,null,null,null,null,null,null,null,null,null,null,null,null,null,null,"スタート価格",null,null,null,null,null,null,null,null,"￥",{"$f":"IF(C82=\"\",\"\",C82)","v":""}]
[null,null,null,null,null,null,null,null,null,null,null,null,null,null,null,null,null,null,null,null,null,null,"◎　その他取り決め事項については、商組ＡＡ規約に基づきます。"]
[null,null,null,null,null,null,null,null,null,null,null,null,1]
[null,null,null,null,null,null,null,null,null,null,null,1,null,null,null,null,null,null,null,null,null,null,{"$f":"IF(C86=\"\",\"\",C86)","v":""},null,null,null,null,null,null,null,null,null,null,null,null,null,{"$f":"IF(H86=\"\",\"\",H86)","v":""},null,null,null,null,null,null,null,null,null,null,null,null,null,null,null,null,null,null,null,null,"希 望 価 格",null,null,null,null,null,null,null,null,"￥",{"$f":"IF(C84=\"\",\"\",C84)","v":""}]
[null,null,null,null,null,null,null,null,null,null,null,2,"自家用"]
[null,null,null,null,null,null,null,null,null,null,null,3,"レンタカー"]
[null,null,null,null,null,null,null,null,null,null,null,4,"事業用"]
[null,null,null,null,null,null,null,null,null,null,null,5,"営業用"]
[null,null,null,null,null,null,null,null,null,null,null,6,"タクシー"]
[null,null,null,null,null,null,null,null,null,null,null,7,"教習車"]
[null,null,null,null,null,null,null,null,null,null,null,8,"リース"]
[null,null,null,null,null,null,null,null,null,null,null,9,"その他"]
[]
[]
[]
[]
[]
[]
[]
[null,null,null,null,null,null,null,null,null,null,null,null,1]
[null,null,null,null,null,null,null,null,null,null,null,1]
[null,null,null,null,null,null,null,null,null,null,null,2,"ガソリン"]
[null,null,null,null,null,null,null,null,null,null,null,3,"軽油"]
[null,null,null,null,null,null,null,null,null,null,null,4,"その他は右に記入"]
[]
[null,null,null,null,null,null,null,null,null,null,null,null,1]
[null,null,null,null,null,null,null,null,null,null,null,1]
[null,null,null,null,null,null,null,null,null,null,null,2,"レギュラー"]
[null,null,null,null,null,null,null,null,null,null,null,3,"スペシャル"]
[null,null,null,null,null,null,null,null,null,null,null,4,"レギュラー大型"]
[null,null,null,null,null,null,null,null,null,null,null,5,"0売り切り"]
[null,null,null,null,null,null,null,null,null,null,null,6,"設定売り切り"]
[null,null,null,null,null,null,null,null,null,null,null,7,"掘り出し"]
[]
[]
[null,null,null,null,null,null,null,null,null,null,null,null,null,null,null,false]
[]
[null,null,null,null,null,null,null,null,null,null,null,null,null,null,null,true]
[]
[null,null,null,null,null,null,null,null,null,null,null,null,false,"色替"]
[null,null,null,null,null,null,null,null,null,null,null,null,false]
[null,null,null,null,null,null,null,null,null,null,null,null,false,"PS"]
[null,null,null,null,null,null,null,null,null,null,null,null,false,"PW"]
[null,null,null,null,null,null,null,null,null,null,null,null,false,"ABS"]
[null,null,null,null,null,null,null,null,null,null,null,null,false,"エアB"]
[null,null,null,null,null,null,null,null,null,null,null,null,false,"AW"]
[null,null,null,null,null,null,null,null,null,null,null,null,false,"ＳＲ"]
[null,null,null,null,null,null,null,null,null,null,null,null,false,"ナビ"]
[null,null,null,null,null,null,null,null,null,null,null,null,false,"ＴＶ"]
[null,null,null,null,null,null,null,null,null,null,null,null,false,"本革"]
[null,null,null,null,null,null,null,null,null,null,null,null,false,"保あり"]
[null,null,null,null,null,null,null,null,null,null,null,null,false,"保なし"]

{"sheet":"記入サンプル","index":1,"n_rows":99,"n_cols":59,"rows_kept":99,"cut":false,"hidden":false,"merged":[[92,2,93,27],[92,29,100,35],[86,2,87,27],[92,37,94,45],[92,46,94,62],[94,2,95,27],[95,37,97,45],[95,46,97,46],[95,47,97,58],[98,37,100,45],[98,46,100,46],[98,47,100,58],[96,2,97,27],[98,2,100,12],[98,16,100,26],[86,37,88,45],[86,46,88,57],[86,58,88,62],[88,2,89,27],[89,37,91,45],[89,46,91,62],[90,2,91,27],[90,29,91,35],[84,2,85,27],[76,40,77,46],[76,56,77,61],[78,40,79,44],[78,48,79,52],[78,57,79,61],[72,10,74,31],[75,10,79,31],[50,8,51,13],[50,14,51,34],[52,2,53,7],[52,8,53,13],[52,14,53,34],[50,2,51,7],[44,3,45,33],[46,3,47,33],[40,3,41,33],[42,3,43,33],[37,47,39,61],[38,36,39,38],[38,40,39,42],[35,53,36,56],[35,6,37,14],[33,27,34,32],[33,36,34,39],[33,42,34,44],[33,47,34,50],[33,53,34,56],[35,24,36,27],[35,29,36,32],[35,36,36,39],[35,42,36,44],[35,47,36,50],[33,59,34,61],[31,4,34,10],[31,12,34,16],[32,17,34,24],[27,28,29,31],[28,35,30,62],[30,28,32,31],[25,35,27,62],[27,5,30,7],[24,28,26,33],[27,10,30,11],[27,14,30,15],[27,16,30,17],[27,18,30,19],[22,35,24,62],[23,5,26,9],[23,12,26,16],[23,19,26,22],[19,7,22,11],[19,12,22,23],[20,28,22,33],[16,44,18,48],[16,50,18,53],[13,50,15,53],[14,20,17,33],[15,35,17,40],[9,51,11,53],[13,44,15,48],[8,16,11,18],[5,11,5,16],[5,51,7,53],[6,11,11,15],[7,20,10,31],[7,32,10,48]]}
[]
[]
[]
[]
[]
[]
[]
[]
[]
[]
[]
[]
[]
[]
[]
[]
[]
[]
[]
[]
[]
[]
[]
[]
[]
[]
[]
[]
[]
[]
[]
[]
[]
[]
[]
[]
[]
[]
[]
[]
[]
[]
[]
[]
[]
[]
[]
[]
[]
[]
[null,null,"検 査 員",null,null,null,null,null,"Ｆ Ｗ",null,null,null,null,null,"　キズ　・　飛石　・　ヒビ割　・　リペア跡　・　×要　"]
[]
[null,null,"記 入 欄",null,null,null,null,null,"内 装",null,null,null,null,null," キズ　・　汚れ　・　コゲ　・　穴　・　スレ　・　キレ　・　破レ "]
[]
[]
[]
[]
[]
[]
[]
[]
[]
[]
[]
[]
[]
[]
[]
[]
[]
[]
[]
[]
[]
[]
[]
[]
[]
[]
[]
[]
[]
[]
[]
[null,null,"１．下見は必ず行い、クレームのないようお願い致します。"]
[]
[null,null,"１．クレーム規約を遵守し、オークションに参加します。",null,null,null,null,null,null,null,null,null,null,null,null,null,null,null,null,null,null,null,null,null,null,null,null,null,null,null,null,null,null,null,null,null,null,"希 望 出 品",null,null,null,null,null,null,null,null,null,null,null,null,null,null,null,null,null,null,null,null,"コーナー"]
[]
[null,null,"１．Ｒ券預託済みの場合は金額を必ず記入して下さい。"]
[null,null,null,null,null,null,null,null,null,null,null,null,null,null,null,null,null,null,null,null,null,null,null,null,null,null,null,null,null,null,null,null,null,null,null,null,null,"会 員 番 号"]
[null,null,"◎　自走可能車に限ります。",null,null,null,null,null,null,null,null,null,null,null,null,null,null,null,null,null,null,null,null,null,null,null,null,null,null,"検　査　員"]
[]
[null,null,"◎　スペアタイヤ、ジャッキ、レンチは必ず備え付けて下さい。",null,null,null,null,null,null,null,null,null,null,null,null,null,null,null,null,null,null,null,null,null,null,null,null,null,null,null,null,null,null,null,null,null,null,"出 品 店 名"]
[]
[null,null,"　 　欠品の場合は規約に基づき実費を差し引きます。"]
[null,null,null,null,null,null,null,null,null,null,null,null,null,null,null,null,null,null,null,null,null,null,null,null,null,null,null,null,null,null,null,null,null,null,null,null,null,"スタート価格",null,null,null,null,null,null,null,null,"￥"]
[null,null,"◎　その他取り決め事項については、商組ＡＡ規約に基づきます。"]
[]
[null,null,null,null,null,null,null,null,null,null,null,null,null,null,null,null,null,null,null,null,null,null,null,null,null,null,null,null,null,null,null,null,null,null,null,null,null,"希 望 価 格",null,null,null,null,null,null,null,null,"￥"]